Cogmind - Beta 14 @@@ ROGUE MODE // 2024.10.20 @ 16:42:18 Player: .fresh Result: Destroyed by Y-64 Sentinel with Wave Gun Performance ------------- Evolutions (5) 2500 Regions Visited (5) 1000 Robots Destroyed (40) 200 Value Destroyed (1361) 1361 Prototype IDs (26) 520 Alien Tech Used (0) 0 Bonus (300) 300 TOTAL SCORE: 5881 Bonus ------- Registered with UFD 300 Cogmind --------- Core Integrity 0/1000 Matter 250/300 Energy 290/290 System Corruption 5% Temperature Cool (9) Movement Walking (110) Location -5/Factory Parts ------- > --- POWER (1) -------- Improved Deuterium Engine > --- PROPULSION (5) --- Carbon-fiber Leg Carbon-fiber Leg Advanced VSS Leg Antigrav System > --- UTILITY (8) ------ Large Storage Unit Core Analyzer Hacking Suite Improved System Shield > --- WEAPON (3) ------- Precision Assault Rifle Tiamat Missile Launcher Kinetic Spear > --- INVENTORY (15) --- Improved Ion Engine Improved Ion Engine Neutrino Core High-capacity Storage Unit Gun Armor Precision Assault Rifle Precision Assault Rifle KE Penetrator Advanced Assault Cannon Heavy Mass Driver Mini Grenade Launcher Tiamat Missile Launcher Kinetic Spear DRS Beacon (Ready) Peak State ------------ > --- POWER ------------ Neutrino Core > --- PROPULSION ------- Carbon-fiber Leg Carbon-fiber Leg Advanced VSS Leg Antigrav System Antigrav System > --- UTILITY ---------- Large Storage Unit Core Analyzer Improved Reaction Control System Hacking Suite Improved System Shield > --- WEAPON ----------- Precision Assault Rifle Tiamat Missile Launcher Kinetic Spear > --- INVENTORY -------- Improved Ion Engine Improved Ion Engine Improved Deuterium Engine High-capacity Storage Unit Gun Armor Precision Assault Rifle Precision Assault Rifle Advanced Assault Cannon Heavy Mass Driver Mini Grenade Launcher Tiamat Missile Launcher Kinetic Spear DRS Beacon [Rating: 74] Favorites ----------- Power Light Ion Engine Engine Light Ion Engine Power Core Neutrino Core Propulsion Spiked Treads Treads Spiked Treads Leg Improved Carbon-fiber Leg Wheel Compact Wheel Hover Unit Improved Hover Unit Utility Large Storage Unit Device Scrap Suit Storage Large Storage Unit Processor Enhanced Optical Array Hackware Hacking Suite Protection Scrap Shield Weapon Greatsword Energy Gun Heavy Riot Gun Energy Cannon Subdweller Beam Cannon Ballistic Gun Improved Assault Rifle Ballistic Cannon Battle Cannon Launcher Tiamat Missile Launcher Special Weapon CPS Tube Slashing Weapon Greatsword Piercing Weapon Kinetic Spear Build | -11 -10 -10 -7 -7 -5 ------- Run | Yrd Mat Sub Rec Scr Fac Slots Evolved 10 | . . . . . 10 Power . | . . . . . . Propulsion 3 | . . . . . 3 Utility 6 | . . . . . 6 Weapon 1 | . . . . . 1 Parts Attached 68 | . 7 11 3 16 31 Power 4 | . . . . 1 3 Engine 3 | . . . . 1 2 Core 1 | . . . . . 1 Reactor . | . . . . . . Propulsion 22 | . 3 2 . 6 11 Treads 8 | . 2 2 . 1 3 Leg 6 | . . . . 3 3 Wheel 2 | . 1 . . 1 . Hover 6 | . . . . 1 5 Flight . | . . . . . . Utility 20 | . 2 3 1 3 11 Device 3 | . . . . . 3 Storage 4 | . 1 . 1 2 . Processor 4 | . 1 . . 1 2 Hackware 2 | . . . . . 2 Protection 7 | . . 3 . . 4 Artifact . | . . . . . . Weapon 22 | . 2 6 2 6 6 Energy Gun 3 | . . 2 . 1 . Energy Cannon 2 | . . 1 1 . . Ballistic Gun 7 | . 2 2 . 1 2 Ballistic Cannon 2 | . . 1 . . 1 Launcher 1 | . . . . . 1 Special Weapon 1 | . . . . 1 . Impact Weapon . | . . . . . . Slashing Weapon 4 | . . . 1 3 . Piercing Weapon 2 | . . . . . 2 Special Melee Weapon . | . . . . . . Unidentified Prototypes 4 | . 1 . . . 3 Parts Lost 20 | . . . . . 20 Power 1 | . . . . . 1 Propulsion 8 | . . . . . 8 Utility 8 | . . . . . 8 Weapon 3 | . . . . . 3 Highest Loss Streak 16 | . . . . . 16 To Critical Strikes . | . . . . . . Average Slot Usage (%) 84 | . 99 88 75 82 73 Engine 13 | . 14 14 14 14 4 Treads 20 | . 14 27 28 15 6 Leg 1 | . . . . 2 10 Wheel 1 | . 12 . . . . Hover 4 | . . . . 10 5 Storage 8 | . 14 3 2 13 5 Processor 7 | . 13 3 . 11 9 Protection 4 | . . 10 11 . 3 Energy Gun 3 | . . 9 . . . Energy Cannon 3 | . . 9 4 . . Ballistic Gun 5 | . 27 8 . . 1 Slashing Weapon 6 | . . . 9 13 2 Peak Build Rating 74 | . 13 16 19 33 74 Average Rating 22 | . 12 15 17 25 60 On Entrance 14 | 6 6 13 14 16 33 Naked Turns . | . . . . . . Heaviest Build 52 | 12 29 33 32 34 52 Greatest Support 48 | 20 40 40 40 40 48 Greatest Overweight (x) 7 | . 1 . . 4 7 Average Overweight (x) . | . . . . . . Largest Inventory Capacity 15 | . 15 15 8 15 15 Average Capacity 9 | . 8 7 5 12 15 Most Carried 15 | . 12 15 7 15 15 Average Carried 9 | . 8 6 5 11 13 Final Capacity 15 | 8 15 5 8 15 15 Final Carried 15 | 6 12 5 7 15 15 Class Distribution -------------------- 93% | Mutant 4% | Derelict-Gladiator Dominant Class ---------------- Mutant | -10/Materials Mutant | -10/Subcaves Mutant | -7/Recycling Mutant | -7/Scraptown Derelict-Gladiator | -5/Factory Resources | -11 -10 -10 -7 -7 -5 ----------- Run | Yrd Mat Sub Rec Scr Fac Matter Collected 1286 | 200 275 303 30 169 309 Remotely . | . . . . . . Salvage Created 2202 | . 279 500 100 . 1323 Parts 112 | . 28 33 2 . 49 Haulers Intercepted 4 | . 1 . . . 3 Recyclers Shooed 1 | . . . . . 1 Parts Field Recycled . | . . . . . . Retrieved Matter . | . . . . . . Parts Self-Destructed 9 | . . 9 . . . Prevented . | . . . . . . Kills | -11 -10 -10 -7 -7 -5 ------- Run | Yrd Mat Sub Rec Scr Fac Combat Hostiles Destroyed 29 | . 9 10 . . 10 Melee 10 | . . . . . 10 Guns 13 | . 9 4 . . . Cannons 5 | . . 5 . . . Classes Destroyed 10 | . 3 2 1 . 4 Worker 1 | . . . . . 1 Hauler 4 | . 1 . . . 3 Recycler 4 | . . . 1 . 3 Turret 2 | . . 2 . . . Swarmer 7 | . 6 1 . . . Grunt 5 | . 3 . . . 2 Sentry 2 | . . . . . 2 Specialist 2 | . . . . . 2 Programmer 4 | . . . . . 4 Subdweller 9 | . . 9 . . . Best Kill Streak 6 | . 6 3 1 . 6 Combat Bots Only 6 | . 6 2 . . 2 Max Kills in Single Turn 1 | . 1 1 1 . 1 Gunslinging . | . . . . . . Exploded . | . . . . . . Melee 1 | . . . . . 1 Uniques/NPCs Destroyed . | . . . . . . Combat | -11 -10 -10 -7 -7 -5 -------- Run | Yrd Mat Sub Rec Scr Fac Hostile Shots Fired 300 | . 13 62 . . 225 Missed 82 | . 4 22 . . 56 Damage Taken 4105 | . 103 608 . . 3394 Core 1060 | . 27 21 . . 1012 Absorbed by Shields . | . . . . . . Regen/Repaired (Parts) 186 | . . . . 176 10 Core Remaining (%) 90 | 100 . . . 80 . Volleys Fired 63 | . 20 37 . . 6 Largest 2 | . 2 2 . . 1 Hottest 140 | . 46 140 . . 33 Shots Fired 109 | . 40 63 . . 6 Gun 90 | . 40 44 . . 6 Cannon 19 | . . 19 . . . Launcher . | . . . . . . Special . | . . . . . . Kinetic 72 | . 40 26 . . 6 Thermal 19 | . . 19 . . . Explosive . | . . . . . . Electromagnetic 18 | . . 18 . . . Robot Hit Streak 21 | . 21 16 . . 21 Robot Miss Streak 3 | . 2 3 . . 1 Penetration Max . | . . . . . . Secondary Targets . | . . . . . . Shots Hit Robots 137 | . 28 43 1 . 65 Core Hits 59 | . 11 22 1 . 25 Critical Kills 2 | . 1 1 . . . Critical Parts Destroyed . | . . . . . . Critical Strikes 9 | . 1 1 . . 7 Meltdown 1 | . . 1 . . . Destroy 1 | . 1 . . . . Sever 4 | . . . . . 4 Impale 3 | . . . . . 3 Melee Attacks 76 | . . . 4 . 72 Impact . | . . . . . . Slashing 18 | . . . 4 . 14 Piercing 58 | . . . . . 58 Sneak Attacks 11 | . . . 1 . 10 Combat Hostiles . | . . . . . . Follow-up Attacks 3 | . . . . . 3 Damage Inflicted 4260 | . 453 780 96 . 2931 Guns 1101 | . 453 536 . . 112 Cannons 244 | . . 244 . . . Explosions . | . . . . . . Melee 2915 | . . . 96 . 2819 Ramming . | . . . . . . Kinetic 813 | . 453 248 . . 112 Thermal 244 | . . 244 . . . Explosive . | . . . . . . Electromagnetic 288 | . . 288 . . . Impact . | . . . . . . Slashing 865 | . . . 96 . 769 Piercing 2050 | . . . . . 2050 Highest Corruption 5 | . . . . . 5 Average Corruption 4 | . . . . . 4 Corruption Purged . | . . . . . . Corruption Blocked . | . . . . . . Effects 12 | . . . . . 12 Message Errors 2 | . . . . . 2 Matter Fused 4 | . . . . . 4 Heat Flow Errors 3 | . . . . . 3 Energy Discharges 3 | . . . . . 3 Overload Shots . | . . . . . . Overflow Damage 237 | . . . . . 237 Projectiles . | . . . . . . Explosions . | . . . . . . Melee 237 | . . . . . 237 Knockbacks . | . . . . . . Impact . | . . . . . . Kinetic . | . . . . . . Secondary . | . . . . . . Self-Inflicted Damage . | . . . . . . Shots . | . . . . . . Rammed . | . . . . . . Targets Rammed . | . . . . . . Kicked . | . . . . . . Crushed . | . . . . . . Highest Temperature 293 | . 4 72 . . 293 Average Temperature 66 | . 3 26 . . 107 Received Heat Transfer 1002 | . 33 189 . . 780 Siege Activations . | . . . . . . Robots Corrupted . | . . . . . . Combat Hostiles . | . . . . . . Parts Fried . | . . . . . . Impact Corruptions . | . . . . . . Robots Melted 1 | . . 1 . . . Combat Hostiles 1 | . . 1 . . . Parts Melted 3 | . . 1 . . 2 Heat Transferred 333 | . . 333 . . . Parts Sabotaged . | . . . . . . Parts Stolen . | . . . . . . Parts Stripped . | . . . . . . Power Chain Reactions . | . . . . . . Alert | -11 -10 -10 -7 -7 -5 ------- Run | Yrd Mat Sub Rec Scr Fac Peak Influence 318 | . 318 . 135 . 149 Initial . | . . . . . . Average 69 | . 87 . 57 . 59 Maximum Alert Level 1 | . 1 . . . . Low Security (%) 95 | . 87 . 100 . 100 Level 1 4 | . 12 . . . . Level 2 . | . . . . . . Level 3 . | . . . . . . Level 4 . | . . . . . . Level 5 . | . . . . . . High Security . | . . . . . . Max Security . | . . . . . . Squads Dispatched 3 | . . . . . 3 Investigation . | . . . . . . Extermination 1 | . . . . . 1 Reinforcement 2 | . . . . . 2 Assault . | . . . . . . Garrison . | . . . . . . Intercept . | . . . . . . Searches Triggered . | . . . . . . Construction Impeded . | . . . . . . Haulers Reinforced . | . . . . . . Active Scanning Responses . | . . . . . . Cargo Convoy Interrupts . | . . . . . . Stealth | -11 -10 -10 -7 -7 -5 --------- Run | Yrd Mat Sub Rec Scr Fac Distress Signals 4 | . 3 . . . 1 Communications Jammed . | . . . . . . Distress Signals . | . . . . . . Times Spotted 50 | . 19 13 . . 18 Peak Tracking Total 5 | . 5 3 . . 5 Tactical Retreats 4 | . 1 1 . . 2 Traps | -11 -10 -10 -7 -7 -5 ------- Run | Yrd Mat Sub Rec Scr Fac Traps Triggered 2 | . . 2 . . . Indirectly . | . . . . . . Trap Hack Attempts . | . . . . . . Triggered . | . . . . . . Disarmed . | . . . . . . Reprogrammed . | . . . . . . Reused . | . . . . . . Traps Extracted . | . . . . . . Installed . | . . . . . . Triggered . | . . . . . . Most Traps Carried 3 | . . . . 3 . Machines | -11 -10 -10 -7 -7 -5 ---------- Run | Yrd Mat Sub Rec Scr Fac Machines Disabled 3 | . 1 2 . . . Max in Single Turn 1 | . 1 1 . . . Machines Repaired . | . . . . . . Machines Dismantled . | . . . . . . Machines Sabotaged . | . . . . . . Overloaded Fab Kills . | . . . . . . Hacking | -11 -10 -10 -7 -7 -5 --------- Run | Yrd Mat Sub Rec Scr Fac Machines Accessed 30 | . 7 2 11 8 2 Terminals 11 | . 7 . 2 . 2 Fabricators . | . . . . . . Repair Stations . | . . . . . . Recycling Units 7 | . . . 7 . . Scanalyzers . | . . . . . . Garrison Access . | . . . . . . Total Hacks 139 | . 17 13 48 53 8 Successful 116 | . 7 13 38 53 5 Failed 23 | . 10 . 10 . 3 Catastrophic 2 | . 2 . . . . Database Lockouts . | . . . . . . Manual 32 | . 13 . 13 . 6 Terminals 29 | . 17 . 4 . 8 Fabricators . | . . . . . . Repair Stations . | . . . . . . Recycling Units 20 | . . . 20 . . Scanalyzers . | . . . . . . Garrison Access . | . . . . . . Terminal Hacks 96 | . 3 13 24 53 3 Record 84 | . . 12 24 47 1 Robot Analysis 5 | . . . . 5 . Prototype ID Bank 2 | . 2 . . . . Level Access Points 1 | . . . . . 1 Locate Traps 1 | . . . . . 1 Zone Layout 1 | . 1 . . . . Derelict Proto ID Bank 2 | . . 1 . 1 . Fabricator Hacks . | . . . . . . Repair Station Hacks . | . . . . . . Recycling Unit Hacks 6 | . . . 6 . . Retrieve Components 6 | . . . 6 . . Scanalyzer . | . . . . . . Garrison Access Hacks . | . . . . . . Unauthorized Hacks 14 | . 4 . 8 . 2 Terminals 7 | . 4 . 1 . 2 Assimilate 1 | . 1 . . . . Botnet 5 | . 2 . 1 . 2 Operators 1 | . 1 . . . . Fabricators . | . . . . . . Repair Stations . | . . . . . . Recycling Units 7 | . . . 7 . . Tunnel 7 | . . . 7 . . Scanalyzers . | . . . . . . Garrison Access . | . . . . . . Data Cores Recovered . | . . . . . . Used . | . . . . . . Hacking Detections 14 | . 6 . 7 . 1 Full Trace Events 1 | . 1 . . . . Feedback Events . | . . . . . . Feedback Blocked . | . . . . . . Robot Schematics Acquired . | . . . . . . Robots Built . | . . . . . . Authchips . | . . . . . . Time . | . . . . . . Total Robot Build Rating . | . . . . . . Part Schematics Acquired . | . . . . . . Parts Built . | . . . . . . Authchips . | . . . . . . Time . | . . . . . . Total Part Build Rating . | . . . . . . Parts Repaired . | . . . . . . Time . | . . . . . . Parts Recycled . | . . . . . . Recycled Matter . | . . . . . . Retrieved Matter . | . . . . . . Retrieved Components 10 | . . . 10 . . Parts Scanalyzed . | . . . . . . Part Schematics Acquired . | . . . . . . Parts Damaged . | . . . . . . Bothacking | -11 -10 -10 -7 -7 -5 ------------ Run | Yrd Mat Sub Rec Scr Fac Used RIF Installer . | . . . . . . Robots Hacked . | . . . . . . Non-combat . | . . . . . . Combat . | . . . . . . Robot Hacks Applied . | . . . . . . Relay Couplers Released . | . . . . . . Fabnet Peak Effective % . | . . . . . . Robots Rewired . | . . . . . . Allies Hacked . | . . . . . . Hacks Repelled . | . . . . . . Allies | -11 -10 -10 -7 -7 -5 -------- Run | Yrd Mat Sub Rec Scr Fac Total Allies 1 | . 1 . . . . Largest Group 1 | . 1 . . . . Highest-Rated Group 10 | . 10 . . . . Highest-Rated Ally 10 | . 10 . . . . Total Orders . | . . . . . . Ally Attacks . | . . . . . . Total Damage . | . . . . . . Kills . | . . . . . . Allies Corrupted . | . . . . . . Allies Melted . | . . . . . . Intel | -11 -10 -10 -7 -7 -5 ------- Run | Yrd Mat Sub Rec Scr Fac Robot Analysis Total 5 | . . . . 5 . Derelict Logs Recovered 3 | . . 3 . . . Drone Launches . | . . . . . . Drone Recoveries . | . . . . . . Exploration | -11 -10 -10 -7 -7 -5 ------------- Run | Yrd Mat Sub Rec Scr Fac Turns Passed 10994 | . 1193 3796 996 4179 830 Spaces Moved 5623 | 1 580 2000 606 2088 348 Core 2 | . . . . . 2 Treads 4557 | . 154 2000 606 1789 8 Legs 587 | 1 18 . . 294 274 Wheels 411 | . 408 . . 3 . Hover 66 | . . . . 2 64 Flight . | . . . . . . Fastest Speed 56 | 120 100 160 160 110 56 Average Speed 169 | 120 117 160 160 196 156 Slowest Speed 400 | 120 160 160 160 300 400 Overloaded Moves . | . . . . . . Propulsion Burnouts . | . . . . . . Robots Hopped . | . . . . . . Cave-ins Triggered . | . . . . . . Exploration Rate (%) 62 | 2 92 91 89 96 7 Regions Visited 5 Branch Regions 3 Pre-discovered Areas 8 | . . 1 7 . . Known Exits Taken . | . . . . . . Unknown Exits Taken 5 | 1 1 1 1 1 . Scrap Searched 14 | . . 5 . 9 . Spaces Dug 3 | . . . 3 . . Terrain Destroyed 6 | . . . 3 . 3 Melee 3 | . . . 3 . . Projectile 3 | . . . . . 3 AOE . | . . . . . . Terrain Rammed . | . . . . . . Walls Destroyed . | . . . . . . Machines Disabled . | . . . . . . Actions | -11 -10 -10 -7 -7 -5 --------- Run | Yrd Mat Sub Rec Scr Fac Total 6903 | . 1051 2536 629 2165 522 Wait 917 | . 426 442 . 1 48 Move 5618 | . 579 1999 605 2087 348 Hop . | . . . . . . Pick Up 73 | . 12 12 8 28 13 Fast Attach 40 | . 1 5 1 16 17 Attach 16 | . 1 . 2 1 12 Detach 3 | . . . . 1 2 Swap 15 | . 5 6 . 2 2 Drop 75 | . 7 25 9 29 5 Fire 63 | . 20 37 . . 6 Melee 73 | . . . 4 . 69 Ram . | . . . . . . Kick . | . . . . . . Crush . | . . . . . . Escape Stasis . | . . . . . . Rewire 1 | . . 1 . . . Trap . | . . . . . . Miscellaneous 9 | . . 9 . . . Route ------- -11/Scrapyard -10/Materials (discovered 5 exits: [*Mat x2] / [*Min x2] / *Sub) -10/Subcaves (discovered 3 exits: [*Mat x2] / *Rec) -7/Recycling -7/Scraptown (discovered 2 exits: *Fac x2) -5/Factory (discovered 4 exits: Fac x4) History --------- Turn | Location | Event 1 | -11/Scrapyard | Discovered new exit (range 0) 1 | -11/Scrapyard | Entered Materials 215 | -10/Materials | Discovered new exit (range 15) 306 | -10/Materials | Build established: Mutant 349 | -10/Materials | Discovered new exit (range 15) 981 | -10/Materials | Discovered new exit (range 7) 1057 | -10/Materials | Discovered new exit (range 16) 1174 | -10/Materials | Discovered new exit (range 14) 1194 | -10/Materials | Entered Subcaves 1475 | -10/Subcaves | Visited Clippyterm 1480 | -10/Subcaves | Learned Research security intel 1532 | -10/Subcaves | Learned location of Zion (-7) 1532 | -10/Subcaves | Met a Zionite searching for "candidates" 1861 | -10/Subcaves | Learned Materials trap positions 1952 | -10/Subcaves | Learned Materials terminal intel 2217 | -10/Subcaves | Shifting Twisted Machinery released Battle Rifle 2225 | -10/Subcaves | Shifting Twisted Machinery released Sub. Monowheel 2366 | -10/Subcaves | Discovered new exit (range 14) 2569 | -10/Subcaves | A swath of the cavern ceiling suddenly collapsed 2636 | -10/Subcaves | Discovered new exit (range 9) 3019 | -10/Subcaves | Discovered new exit (range 13) 3034 | -10/Subcaves | Shifting Twisted Machinery released Sub. Monowheel 3034 | -10/Subcaves | Shifting Twisted Machinery released Mak. Laser 3099 | -10/Subcaves | Learned Materials terminal intel 4789 | -10/Subcaves | Visited 4L-MR0's lab 4813 | -10/Subcaves | Found Gun Armor 4990 | -10/Subcaves | Entered Recycling 4991 | -7/Recycling | Met a Zionite searching for Scraptown 5932 | -7/Recycling | Scanned before Scraplab entrance 5954 | -7/Recycling | Entered Scraplab 5977 | -7/Recycling | Discovered new exit (range 2) 5986 | -7/Recycling | Entered Scraptown 6294 | -7/Scraptown | Visited Cyclists 6355 | -7/Scraptown | Visited Shadow of the Wyrm 6414 | -7/Scraptown | Visited UFD Registry 6417 | -7/Scraptown | Registered with UFD as "Plasmawarp" 6448 | -7/Scraptown | Visited Awakened 6501 | -7/Scraptown | Visited CR-KLE's Repair Center 6728 | -7/Scraptown | Visited Bundlers 6849 | -7/Scraptown | Visited Red Mages 6902 | -7/Scraptown | Found Relay Coupler [Proto] 6975 | -7/Scraptown | Entered Cyclist Reading Room 7210 | -7/Scraptown | Discovered new exit (range 5) 7367 | -7/Scraptown | Visited SPCMW 7477 | -7/Scraptown | CR-KLE repaired 5 parts 7903 | -7/Scraptown | Visited Chapter 10 8025 | -7/Scraptown | Visited LU-1G1's Boring Crew 8142 | -7/Scraptown | Visited Science Guys 8515 | -7/Scraptown | Visited Research Penetration Think Tank 8574 | -7/Scraptown | Visited Curators Association 9299 | -7/Scraptown | Delivered Scrap Shield to a Scientist 9653 | -7/Scraptown | Visited DA-N13 Charitable Foundation 9666 | -7/Scraptown | Found DCF Scrap (30 items) 9756 | -7/Scraptown | Visited Analyses Database 9798 | -7/Scraptown | Visited Derelict Rescue Squad 9818 | -7/Scraptown | Found DRS Beacon 9858 | -7/Scraptown | Visited Abandonware Association 9929 | -7/Scraptown | Visited Junk Repository 10059 | -7/Scraptown | Discovered new exit (range 3) 10086 | -7/Scraptown | Found Scrap Suit 10165 | -7/Scraptown | Entered Factory 10165 | -5/Factory | Evolved 10 slots: Propulsion x3, Utility x6, Weapon x1 10465 | -5/Factory | Build established: Derelict-Gladiator 10649 | -5/Factory | Core integrity fell below 50% 10674 | -5/Factory | Core integrity fell below 20% 10704 | -5/Factory | Lost 16 parts (1p6n6u3w) 10946 | -5/Factory | Identified exit to Factory 10995 | -5/Factory | Destroyed by Y-64 Sentinel with Wave Gun Last Messages --------------- >>Trojan(Botnet) Trojan loaded successfully. Testing... Terminal linked with 1 system. Awaiting botnet instructions. 10946_ Connecting with Terminal... 10948_ System corrupted: Energy discharge (-92). 10948_ Acquired KE Penetrator. 10955_ Penetrated by Slug. 10970_ Slug penetrates Wall. 10973_ Imp. Reaction Control System destroyed. 10976_ Penetrated by Slug. 10976_ Terminal disabled. 10980_ Slug penetrates Wall. 10983_ Penetrated by Slug. 10986_ Critical hit (Burn: +37). 10988_ Y-64 Sentinel suffers critical hit (Impale). 10990_ Antigrav System destroyed. 10990_ Penetrated by Slug. Map ----- +----------------------------------------------------+ | ??????????????????????????????????????? | | ??????????????????????????????????????? | | ####/####????????????????????????????????????????? | | ???????????????????????? ??????????????????????? | | ???????????????????????? #?????????????????????? | | ???????????????????????? #?????????????????????? | | ???????????????????????# #?????????????????????? | | ???????????????????????# #?????????????????????? | | ???????????????????????# #?????????????????????? | | ???????????????????????# #?????????????????????? | | ???????????????????????# #?????????????????????? | | +#?????????????????????# #?????????????????????? | | ##############?????#+## #?????????????????????? | | ?????? #?????????????????????? | | ??????? #?????????????????????? | | ???????? #?????????????????????? | | ########## #?????????????????????? | | ## ## ##????????????????????? | | ## # #????????????????????? | | ###### ## # #????????????????????? | | #????# ## + #????????????????????? | | +????# + # #????????????????????? | | #####????# ## # #????????????????????? | | ?????????# #####+##### ###????????????????????? | | ?????????# #?????????# # #????????????????????? | | #####????# #?# ###@;########??????????????? | | # ###### ### Y #???????? | | #############??????????????? | | # ############# #??????????????????????????? | | #####????????????????##??????????????????????????? | | ?????????????????????????????????????????????????? | | ?????????????????????????????????????????????????? | | ?????????????????????????????????????????????????? | | | | | | | | | | | | | | | | | | | | | | | | | | | | | | | | | | | +----------------------------------------------------+ Best States ------------- Heat Dissipation 40 Energy Generation 19 Energy Capacity 315 Matter Stores 300 Matter Capacity 300 Sight Range 22 Terrain Scan Density 10 Armor Coverage 800 Melee Speed Boost 20 Evasion (%) 60 Targeting Accuracy 6 Melee Accuracy 6 Core Analysis 6 Recoil Reduction 2 Offensive Hacking 10 Defensive Hacking 12 Item Schematics ----------------- None Robot Schematics ------------------ None Fabricated ------------ Nothing Alien Tech Used ----------------- None Achievements -------------- None Challenges ------------ None Game ------ Seed BattleMeleeShredder Manual? 0 Play Time 01:38:09 Cumulative 125.0 hours Start 2024.10.20 @ 08:38:21 End 2024.10.20 @ 16:42:18 Sessions 5 Manual Loads 0 Difficulty Rogue Special Mode None Game No. 59 Rogue 59 Adventurer 0 Explorer 0 Win Type - Total 6 Types 4/0/1/1/0/0/0/0/0 Lore% 55 Gallery% 64 Achievement% 58 Wizard Run 0 Options --------- Layout 2 ASCII 0 Keyboard 0 Movement Numpad Keybinds 0 Fullscreen 2 Font 24/Smallcaps Map View 50x44 Zoom Use 0% Tactical HUD 1 Map Filters NONE Filters NONE Steam 1 RUN: 22159ac1-2a71-4332-922e-d069f1af4b14